bitfinex-derivatives/quotes_BTCF0:USTF0_20251209
["timestamp","ask_amount","ask_price","bid_price","bid_amount"]
[1765295110107,0.00016269,92174.0,92156.0,0.00016269]
[1765295110411,0.00016269,92174.0,92170.0,0.0108496]
[1765295110711,0.08525713,92220.0,92189.0,0.0108474]
[1765295111005,0.09584,92233.0,92194.0,0.0108468]
[1765295111208,0.18889726,92220.0,92195.0,0.05298203]
[1765295111413,0.18889726,92220.0,92188.0,0.0108475]
[1765295111414,0.09584,92233.0,92196.0,0.01696271]
[1765295111599,0.00016238,92224.0,92205.0,0.00016269]
[1765295111928,0.18889726,92220.0,92205.0,0.00016269]
[1765295112104,0.18889726,92200.0,92168.0,0.0108499]
[1765295112306,0.18889726,92200.0,92150.0,0.04]
[1765295112307,0.18889726,92210.0,92170.0,0.0108497]
[1765295112602,0.18889726,92200.0,92170.0,0.0108497]
[1765295112808,0.10844281,92229.0,92174.0,0.0108492]
[1765295113014,0.18889726,92210.0,92169.0,0.0108497]
[1765295113210,0.18889726,92200.0,92195.0,0.002]
[1765295113413,0.18889726,92205.0,92170.0,0.001]
[1765295113712,0.1084581,92199.0,92170.0,0.001]
[1765295113911,0.00099999,92220.0,92170.0,0.001]
[1765295114097,0.18889726,92180.0,92170.0,0.001]
[1765295114305,0.4,92180.0,92170.0,0.001]
[1765295114607,0.4,92180.0,92150.0,0.04]
[1765295114608,0.67538242,92180.0,92150.0,0.04]
[1765295114809,0.18889726,92160.0,92150.0,0.00700625]
[1765295115115,0.18889726,92160.0,92140.0,8.979e-05]
[1765295115314,0.18889726,92150.0,92140.0,8.979e-05]
[1765295115798,0.7216,92141.0,92140.0,8.979e-05]
[1765295116000,0.7216,92141.0,92111.0,0.3608]
[1765295116310,0.3608,92123.0,92111.0,0.3608]
[1765295116505,0.32982188,92123.0,92117.0,0.0108558]
[1765295116813,0.3608,92141.0,92121.0,0.0108554]
[1765295117109,0.3608,92141.0,92101.0,0.00021715]
[1765295117110,0.3608,92130.0,92122.0,0.00016278]
[1765295117311,0.00011477,92129.0,92122.0,0.00016278]
[1765295117608,0.00011477,92129.0,92116.0,0.010856]
[1765295117809,0.002,92123.0,92119.0,0.3608]
[1765295118419,0.003,92123.0,92112.0,0.00016278]
[1765295118616,0.003,92123.0,92122.0,0.3608]
[1765295119016,0.003,92123.0,92112.0,0.00016278]
[1765295119218,0.002,92123.0,92113.0,0.3608]
[1765295119518,0.00011477,92129.0,92128.0,0.0108546]
[1765295119706,0.3608,92166.0,92139.0,0.00161204]
[1765295119908,0.3608,92184.0,92164.0,0.0108504]
[1765295120115,0.3608,92184.0,92167.0,0.3608]
[1765295120309,0.3608,92184.0,92144.0,0.00161204]
[1765295120310,0.3608,92184.0,92170.0,0.0108496]
[1765295120510,0.3608,92184.0,92168.0,0.0108498]
[1765295120706,0.36101715,92193.0,92174.0,0.3608]
[1765295120906,0.00021715,92193.0,92183.0,0.0108481]
[1765295121105,0.00037993,92193.0,92182.0,0.3608]
[1765295121403,0.36117993,92193.0,92167.0,0.00016278]
[1765295121604,0.36117993,92193.0,92177.0,0.3608]
[1765295121805,0.00037993,92193.0,92192.0,0.3716471]
[1765295122020,0.00037993,92193.0,92192.0,0.3608]
[1765295122317,0.003,92184.0,92178.0,0.0108487]
[1765295122820,0.00037993,92193.0,92184.0,0.0108479]
[1765295123015,0.00337993,92193.0,92172.0,0.00161204]
[1765295123211,0.00337993,92193.0,92173.0,0.03711794]
[1765295123406,0.003,92184.0,92183.0,0.3608]
[1765295123619,0.003,92184.0,92179.0,0.0108486]
[1765295123817,0.003,92184.0,92172.0,0.01246144]
[1765295124015,0.00337993,92193.0,92172.0,0.00161204]
[1765295124207,0.00337993,92193.0,92174.0,0.0108492]
[1765295124823,0.00337993,92193.0,92181.0,0.3608]
[1765295125114,0.3608,92189.0,92172.0,0.00261204]
[1765295125315,0.3608,92189.0,92172.0,0.001]
[1765295125508,0.3608,92177.0,92167.0,0.00016278]
[1765295125709,0.3608,92169.0,92147.0,0.3608]
[1765295125917,0.44889992,92177.0,92146.0,7.943e-05]
[1765295125918,0.3608,92153.0,92146.0,7.943e-05]
[1765295126218,0.3608,92153.0,92109.0,0.3608]
[1765295126515,0.3608,92136.0,92117.0,0.3608]
[1765295126814,0.36096278,92136.0,92117.0,0.36096278]
[1765295127015,7.943e-05,92135.0,92117.0,0.36096278]
[1765295128325,0.3608,92125.0,92117.0,0.00016278]
[1765295128518,0.3608,92118.0,92117.0,0.00016278]
[1765295128718,0.3608,92118.0,92117.0,0.00116278]
[1765295129418,0.3608,92118.0,92082.0,0.3608]
[1765295129620,0.30867422,92130.0,92082.0,0.3608]
[1765295129621,0.3608,92095.0,92082.0,0.3608]
[1765295129818,0.3608,92087.0,92059.0,0.3608]
[1765295130017,0.3608,92084.0,92059.0,0.3608]
[1765295130221,7.943e-05,92083.0,92072.0,0.0108612]
[1765295130412,7.943e-05,92083.0,92071.0,0.00010908]
[1765295130614,7.943e-05,92083.0,92079.0,0.0108604]
[1765295131018,0.00016287,92090.0,92088.0,0.0108593]
[1765295131223,0.00016287,92090.0,92082.0,0.01086]
[1765295131416,0.00016287,92090.0,92078.0,0.36090401]
[1765295131618,0.3608,92087.0,92078.0,0.00010401]
[1765295131827,0.3608,92087.0,92079.0,0.001]
[1765295132017,0.00016287,92090.0,92085.0,0.3608]
[1765295132212,0.3608,92118.0,92089.0,0.3608]
[1765295132419,0.3608,92131.0,92112.0,0.3608]
[1765295132929,0.3608,92131.0,92095.0,0.3716585]
[1765295132930,0.3608,92119.0,92095.0,0.3716585]
[1765295133124,0.00016287,92116.0,92098.0,0.00016287]
[1765295133623,0.00016287,92116.0,92098.0,0.01102097]
[1765295133935,0.00016287,92116.0,92103.0,0.3608]
[1765295134223,0.3628,92131.0,92130.0,0.0108544]
[1765295134430,0.002,92131.0,92130.0,0.3608]
[1765295134612,0.002,92131.0,92119.0,0.3608]
[1765295134821,0.3628,92131.0,92106.0,0.3716571]
[1765295135026,0.3608,92124.0,92103.0,0.3608]
[1765295135220,0.3608,92124.0,92104.0,0.0108575]
[1765295135421,0.00016287,92123.0,92120.0,0.0108556]
[1765295135628,0.00016278,92131.0,92126.0,0.0108548]
[1765295136019,0.00016278,92131.0,92130.0,0.3608]
[1765295136419,0.00016278,92131.0,92119.0,0.00116278]
[1765295136827,0.00216278,92131.0,92121.0,0.3608]
[1765295137020,0.3608,92129.0,92119.0,0.00016278]
[1765295137218,0.3608,92121.0,92119.0,0.00016278]
[1765295137525,0.3608,92121.0,92102.0,0.3608]
[1765295137721,0.3608,92113.0,92090.0,0.3608]
[1765295137927,0.3608,92113.0,92091.0,0.03675248]
[1765295138130,0.3608,92113.0,92092.0,0.04761138]
[1765295138426,0.3608,92105.0,92093.0,0.03675248]
[1765295138621,0.3608,92105.0,92090.0,0.36096287]
[1765295138823,0.3533,92105.0,92091.0,0.03654916]
[1765295139034,0.3533,92105.0,92090.0,0.36396287]
[1765295139215,0.00016287,92108.0,92090.0,0.36396287]
[1765295139528,0.00016287,92108.0,92106.0,0.0108572]
[1765295139735,0.00016287,92108.0,92101.0,0.0108577]
[1765295139923,0.00016287,92108.0,92102.0,0.0365652]
[1765295140114,0.00016287,92108.0,92098.0,0.3608]
[1765295140319,0.00016287,92108.0,92107.0,0.3608]
[1765295140528,0.00016287,92108.0,92107.0,0.39736859]
[1765295141527,0.00016287,92108.0,92107.0,0.03656859]
[1765295142027,0.00016287,92108.0,92107.0,0.03756859]
[1765295142324,0.36196287,92108.0,92107.0,0.001]
[1765295142626,0.00116287,92108.0,92107.0,0.03756794]
[1765295142830,0.00116287,92108.0,92107.0,0.001]
[1765295143024,0.36196287,92108.0,92107.0,0.001]
[1765295143327,0.36196287,92108.0,92092.0,0.0278137]
[1765295143629,0.36196287,92108.0,92090.0,0.00016287]
[1765295143630,0.3608,92096.0,92093.0,0.03606833]
[1765295143832,0.3608,92096.0,92090.0,0.00016287]
[1765295144530,0.3608,92096.0,92092.0,0.003]
[1765295144929,0.3608,92096.0,92092.0,0.006]
[1765295145433,0.00016287,92108.0,92095.0,0.3716585]
[1765295145629,0.00016287,92108.0,92102.0,0.0108576]
[1765295146029,0.00016287,92108.0,92098.0,0.0108582]
[1765295146227,0.00016287,92108.0,92102.0,0.0108577]
[1765295146531,0.00016287,92108.0,92100.0,0.0108579]
[1765295146831,0.00016287,92108.0,92095.0,0.3608]
[1765295147032,0.00016287,92108.0,92096.0,0.03558545]
[1765295147228,0.3608,92104.0,92097.0,0.03558545]
[1765295147439,0.3608,92104.0,92090.0,0.00016287]
[1765295147627,0.3608,92095.0,92090.0,0.00016287]
[1765295147826,0.3608,92104.0,92090.0,0.00016287]
[1765295148424,0.3628,92104.0,92091.0,0.03595758]
[1765295148626,0.002,92104.0,92092.0,0.03595546]
[1765295148826,0.3608,92105.0,92093.0,0.03595546]
[1765295149030,0.3608,92105.0,92090.0,0.00016287]
[1765295149031,0.003,92104.0,92090.0,0.00016287]
[1765295149231,0.3608,92094.0,92090.0,0.00016287]
[1765295149842,0.3608,92093.0,92078.0,0.00010401]
[1765295150043,0.3608,92093.0,92053.0,0.07957671]
[1765295150044,0.3608,92079.0,92063.0,0.02795618]
[1765295150246,0.3608,92064.0,92058.0,0.02795618]
[1765295150440,0.0875682,92079.0,92055.0,0.02795618]
[1765295150637,0.00099999,92090.0,92055.0,0.02795618]
[1765295150845,0.25774583,92070.0,92063.0,0.00010949]
[1765295151350,0.4,92069.0,92034.0,0.02795618]
[1765295151546,0.08578681,92090.0,92035.0,0.04493317]
[1765295151751,0.05,103950.0,92036.0,0.04493317]
[1765295151752,0.25774583,92070.0,92036.0,0.04493317]
[1765295151941,0.002,92079.0,92037.0,0.01697699]
[1765295152146,0.14676,92082.0,92039.0,0.02795618]
[1765295152345,0.14676,92082.0,92040.0,0.01697699]
[1765295152346,0.26190879,92070.0,92040.0,0.01697699]
[1765295152649,0.3608,92042.0,92041.0,0.01697699]
[1765295154139,0.3608,92042.0,92041.0,0.01798737]
[1765295154354,0.00016296,92051.0,92041.0,0.01798737]
[1765295154647,1.5,92050.0,92042.0,0.04494355]
[1765295154846,1.5,92050.0,92041.0,0.003]
[1765295154847,0.3608,92048.0,92043.0,0.01698737]
[1765295155052,1.5,92050.0,92044.0,0.01698737]
[1765295155253,0.00016296,92051.0,92049.0,0.02795618]
[1765295155452,0.3608,92060.0,92050.0,0.02785117]
[1765295155655,0.25774583,92100.0,92056.0,0.010863]
[1765295155840,1.5,92070.0,92057.0,0.01698737]
[1765295156039,1.8608,92070.0,92058.0,0.01698737]
[1765295156247,1.8608,92070.0,92059.0,0.01698737]
[1765295156443,1.5,92070.0,92069.0,0.3608]
[1765295156644,0.00016296,92074.0,92069.0,0.38864887]
[1765295156845,0.00016296,92074.0,92070.0,0.01698737]
[1765295157051,0.00016296,92074.0,92071.0,0.01698737]
[1765295157253,0.00016296,92074.0,92072.0,0.01698737]
[1765295157456,0.00016296,92074.0,92073.0,0.01698737]
[1765295157845,0.00316296,92074.0,92073.0,0.01698737]
[1765295158245,0.00716296,92074.0,92073.0,0.01698113]
[1765295159356,0.00716296,92074.0,92073.0,0.37778113]
[1765295159756,0.00316296,92074.0,92073.0,0.37778113]
[1765295159956,0.00816296,92074.0,92073.0,0.37778113]
[1765295160554,0.40816296,92074.0,92073.0,0.35532905]
[1765295160758,0.00816296,92074.0,92054.0,0.02795618]
[1765295160943,0.00816296,92074.0,92056.0,0.01698222]
[1765295161143,0.00816296,92074.0,92061.0,0.0108625]
[1765295161458,0.00816296,92074.0,92060.0,0.02795618]
[1765295161651,0.00816296,92074.0,92073.0,0.3608]
[1765295162050,0.00816296,92074.0,92073.0,0.39239263]
[1765295162355,0.00816296,92074.0,92062.0,0.02795618]
[1765295162559,0.00816296,92074.0,92051.0,0.02795618]
[1765295162752,0.25774583,92072.0,92046.0,0.02795618]
[1765295162955,0.10860888,92073.0,92056.0,0.03159649]
[1765295163159,0.00216296,92074.0,92059.0,0.02795618]
[1765295163453,1.5,92089.0,92078.0,0.0108605]
[1765295163758,0.3205,92116.0,92063.0,0.02795618]
[1765295163759,0.51636,92109.0,92063.0,0.02795618]
[1765295163955,0.001,92072.0,92064.0,0.03156885]
[1765295164262,0.001,92072.0,92065.0,0.03156885]
[1765295164447,0.001,92072.0,92066.0,0.03156885]
[1765295164650,0.001,92072.0,92067.0,0.03156885]
[1765295164852,0.001,92073.0,92068.0,0.04243055]
[1765295165051,0.001,92073.0,92070.0,0.0108615]
[1765295165263,0.001,92073.0,92071.0,0.03156885]
[1765295165565,0.3205,92105.0,92063.0,0.002]
[1765295165748,1.5,92108.0,92080.0,0.25774583]
[1765295166059,0.5162,92133.0,92108.0,0.0108569]
[1765295166252,0.41772,92137.0,92107.0,0.010857]
[1765295166559,0.41772,92137.0,92087.0,0.0108595]
[1765295166560,1.5,92114.0,92105.0,0.0108572]
[1765295166760,1.5,92114.0,92102.0,0.00016287]
[1765295166946,1.5,92114.0,92074.0,0.02795618]
[1765295167147,1.5,92114.0,92075.0,0.03159499]
[1765295167447,1.5,92114.0,92078.0,0.0108605]
[1765295167657,1.5,92114.0,92079.0,0.03161922]
[1765295167858,0.25774583,92110.0,92068.0,0.02795618]
[1765295168156,0.00016287,92098.0,92060.0,0.0108626]
[1765295168558,0.00016287,92098.0,92078.0,0.005]
[1765295168863,0.00016287,92098.0,92031.0,0.0108661]
[1765295169052,0.1085906,92097.0,92056.0,0.0108631]
[1765295169252,0.00016287,92074.0,92056.0,0.0108631]
[1765295169454,0.00016287,92074.0,92055.0,0.00016283]
[1765295170054,0.00016287,92074.0,92068.0,0.003]
[1765295170658,0.40016287,92074.0,92056.0,0.003]
[1765295170964,0.00016287,92074.0,92055.0,0.00016283]
[1765295171148,0.00116287,92074.0,92055.0,0.00016283]
[1765295171353,0.00116287,92074.0,91990.0,0.01187079]
[1765295171354,0.25774583,92065.0,92007.0,0.09947089]
[1765295171568,0.1086195,92073.0,92019.0,0.0108674]
[1765295171864,0.25774583,92050.0,92014.0,0.010868]
[1765295172059,0.25774583,92050.0,91986.0,0.09947089]
[1765295172260,0.00099999,92070.0,91992.0,0.0108707]
[1765295172451,0.25774583,92030.0,91992.0,0.0108707]
[1765295172657,0.02908,92029.0,91987.0,0.0108712]
[1765295172852,0.02908,92029.0,91981.0,0.0108719]
[1765295173054,0.10865785,92029.0,92002.0,0.0108694]
[1765295173255,0.00016297,92040.0,92002.0,0.0108694]
[1765295173256,0.09488297,92040.0,92002.0,0.0108694]
[1765295173458,0.00016297,92040.0,92012.0,0.00509809]
[1765295173658,0.00016297,92040.0,92013.0,0.0108681]
[1765295173962,0.00016297,92040.0,92012.0,0.00509809]
[1765295174264,0.002,92029.0,92025.0,0.0108667]
[1765295175269,0.00116297,92040.0,92037.0,0.0108654]
[1765295175452,0.00892,92078.0,92048.0,0.010864]
[1765295175655,0.13184,92087.0,92027.0,0.0543329]
[1765295175851,0.10866376,92098.0,92040.0,0.25774583]
[1765295176064,1.5,92114.0,92077.0,0.0108606]
[1765295176259,1.5,92114.0,92075.0,0.0108608]
[1765295176453,0.5174,92113.0,92085.0,0.00016287]
[1765295176666,0.00016287,92104.0,92089.0,0.0108592]
[1765295176866,0.00016287,92104.0,92085.0,0.00016287]
[1765295177053,0.05834709,92101.0,92085.0,0.00016287]
[1765295177260,0.02358784,92101.0,92099.0,0.010858]
[1765295177463,0.00016287,92104.0,92099.0,0.010858]
[1765295177464,1e-08,92104.0,92099.0,0.010858]
[1765295177659,0.00108561,92115.0,92114.0,0.0108563]
[1765295178263,0.00108561,92115.0,92114.0,0.4108563]
[1765295179067,0.00108561,92115.0,92106.0,0.0108572]
[1765295179375,0.00108561,92115.0,92105.0,0.00016287]
[1765295180069,0.00108561,92115.0,92099.0,0.002]
[1765295180270,0.00108561,92115.0,92085.0,0.002]
[1765295180568,0.30576,92114.0,92059.0,0.0108627]
[1765295180768,0.30576,92114.0,92058.0,0.0108628]
[1765295180963,0.10856938,92113.0,92050.0,0.0108637]
[1765295181269,0.00016287,92104.0,92086.0,0.00016287]
[1765295181461,0.46088287,92104.0,92086.0,0.00016287]
[1765295181967,0.46088287,92104.0,92060.0,0.0108626]
[1765295182166,0.00016287,92104.0,92065.0,0.010862]
[1765295182373,0.00016287,92104.0,92084.0,0.0108598]
[1765295182575,0.00016287,92104.0,92077.0,0.0108606]
[1765295182867,0.00016287,92104.0,92090.0,0.0108591]
[1765295183069,0.00016287,92104.0,92076.0,0.0119906]
[1765295183370,0.00116287,92104.0,92076.0,0.0011299]
[1765295183672,0.00116287,92104.0,92077.0,0.0108606]
[1765295183870,0.00016287,92104.0,92093.0,0.0108587]
[1765295184574,0.00016287,92104.0,92077.0,0.002]
[1765295185371,0.00016287,92104.0,92095.0,0.0108584]
[1765295185570,0.00016287,92104.0,92102.0,0.0108577]
[1765295185970,0.00016287,92104.0,92076.0,0.0001299]
[1765295186165,0.00016287,92104.0,92048.0,0.08825815]
[1765295186166,0.33560738,92100.0,92048.0,0.08825815]
[1765295186367,0.25774583,92080.0,92048.0,0.08825815]
[1765295186672,0.00016287,92083.0,92048.0,0.08825815]
[1765295186976,0.25774583,92080.0,92033.0,0.0108658]
[1765295187165,0.00016287,92066.0,92024.0,0.0108668]
[1765295187473,0.00016287,92066.0,92000.0,0.25774583]
[1765295187474,0.25774583,92060.0,92000.0,0.25774583]
[1765295187771,0.00016296,92039.0,92015.0,0.0108679]
[1765295187970,9.803e-05,92038.0,92016.0,0.02810376]
[1765295188166,9.803e-05,92038.0,92015.0,0.0108679]
[1765295188367,9.803e-05,92038.0,92012.0,0.0108682]
[1765295188571,9.803e-05,92038.0,92005.0,0.0108691]
[1765295188770,9.803e-05,92038.0,92008.0,0.0108688]
[1765295189172,9.803e-05,92038.0,92024.0,0.003]
[1765295189567,9.803e-05,92038.0,92015.0,0.003]
[1765295189970,9.803e-05,92038.0,92023.0,0.010867]
[1765295190369,9.803e-05,92038.0,92024.0,0.003]
[1765295190570,0.36089803,92038.0,92029.0,0.0108663]
[1765295190875,0.36089803,92038.0,92024.0,0.003]
[1765295191075,9.803e-05,92038.0,92029.0,0.3608]
[1765295191276,9.803e-05,92038.0,92029.0,0.3716662]
[1765295191473,9.803e-05,92038.0,92029.0,0.3608]
[1765295192173,9.803e-05,92038.0,92024.0,0.003]
[1765295192174,9.803e-05,92038.0,92024.0,0.3638]
[1765295192371,9.803e-05,92038.0,92024.0,0.3608]
[1765295192372,1.5,92037.0,92024.0,0.3608]
[1765295192575,9.803e-05,92038.0,92032.0,0.3608]
[1765295192969,1.50009803,92038.0,92032.0,0.3608]
[1765295193582,1.50009803,92038.0,92035.0,0.0108655]
[1765295193782,9.803e-05,92038.0,92035.0,0.0108655]
[1765295193981,9.803e-05,92038.0,92032.0,0.002]
[1765295194279,9.803e-05,92038.0,92009.0,0.3608]
[1765295194280,0.3608,92033.0,92009.0,0.3608]
[1765295194482,0.51724,92032.0,91965.0,0.00108738]
[1765295194684,1.9,92037.0,91994.0,0.0108703]
[1765295194884,1.9,92037.0,91993.0,0.0108705]
[1765295195085,0.62601431,92036.0,92035.0,0.001]
[1765295195382,0.62601431,92036.0,91965.0,0.00108738]
[1765295195575,0.25774583,92020.0,91979.0,0.0108722]
[1765295195773,0.00016296,92015.0,91972.0,0.010873]
[1765295195978,0.00011993,92014.0,91993.0,0.001]
[1765295196276,0.00011993,92014.0,91994.0,0.0108704]
[1765295196473,0.00011993,92014.0,91997.0,0.01087]
[1765295196673,0.00011993,92014.0,92004.0,0.0108692]
[1765295196878,0.00011993,92014.0,91992.0,0.00209475]
[1765295197079,0.00011993,92014.0,91993.0,0.001]
[1765295197376,0.00011993,92014.0,92006.0,0.010869]
[1765295197583,0.00011993,92014.0,92010.0,0.0108685]
[1765295198781,0.00211993,92014.0,92010.0,0.0108685]
[1765295199079,0.00211993,92014.0,92013.0,0.3608]
[1765295199271,1.5,92037.0,92036.0,0.0108655]
[1765295199672,0.3608,92062.0,92035.0,0.3608]
[1765295199876,0.3608,92051.0,92035.0,0.3608]
[1765295200077,0.3608,92040.0,92029.0,0.0108663]
[1765295200376,1.5,92050.0,92024.0,0.3608]
[1765295200377,0.3608,92043.0,92025.0,0.00016296]
[1765295200577,0.3608,92035.0,92025.0,0.00016296]
[1765295200978,0.3608,92035.0,91993.0,0.3608]
[1765295201182,0.3608,92007.0,91993.0,0.3608]
[1765295201381,0.3608,92015.0,91993.0,0.3608]
[1765295201583,0.3608,92024.0,92007.0,0.0108688]
[1765295201787,0.3608,92024.0,92011.0,0.3716684]
[1765295202081,0.3608,92024.0,92011.0,0.3608]
[1765295202684,0.3608,92024.0,92001.0,0.3608]
[1765295202873,0.3608,92024.0,92007.0,0.002]
[1765295202874,0.3608,92016.0,92007.0,0.002]
[1765295203076,0.3608,92024.0,92011.0,0.3618]
[1765295203477,0.3608,92024.0,92011.0,0.3628]
[1765295203782,0.3608,92013.0,92011.0,0.002]
[1765295203982,0.3608,92013.0,91992.0,9.475e-05]
[1765295204186,0.3608,92005.0,91992.0,9.475e-05]
[1765295204576,0.3608,92005.0,92001.0,0.002]
[1765295204783,0.00016296,92008.0,92001.0,0.002]
[1765295204982,0.00016296,92008.0,92007.0,0.001]
[1765295205591,0.00016296,92008.0,92006.0,0.010869]
[1765295205889,0.00016296,92008.0,92007.0,0.3608]
[1765295206280,0.00416296,92008.0,92007.0,0.3608]
[1765295206682,0.00116296,92008.0,92007.0,0.3608]
[1765295206985,0.00316296,92008.0,92007.0,0.3608]
[1765295207378,0.00316296,92008.0,91992.0,9.475e-05]
[1765295207379,0.76396296,92008.0,91992.0,9.475e-05]
[1765295207581,0.3608,92000.0,91992.0,9.475e-05]
[1765295207782,0.00316296,92008.0,91992.0,9.475e-05]
[1765295208191,0.3608,91997.0,91992.0,9.475e-05]
[1765295208581,0.3608,92000.0,91992.0,0.00109475]
[1765295208779,0.3608,92007.0,91992.0,0.00109475]
[1765295209276,0.3608,91999.0,91992.0,0.00109475]
[1765295209478,0.3608,91998.0,91992.0,0.00109475]
[1765295210591,0.00016296,92008.0,91992.0,0.00109475]
[1765295210785,0.00016296,92008.0,91993.0,0.0108706]
[1765295210985,0.00016296,92008.0,92007.0,0.3608]
[1765295211292,0.3608,92026.0,91996.0,0.3608]
[1765295211476,0.3608,92032.0,92013.0,0.3608]
[1765295211677,0.3608,92046.0,92029.0,0.3608]
[1765295211874,0.3608,92035.0,92019.0,0.0108674]
[1765295212082,0.00016305,92036.0,92026.0,0.3608]
[1765295212480,0.00016305,92036.0,92026.0,0.3716666]
[1765295212776,0.00016305,92036.0,92018.0,0.00016305]
[1765295212777,0.05816745,92067.0,92046.0,0.0108642]
[1765295212977,0.05816745,92066.0,92019.0,0.0108675]
[1765295213288,0.05816745,92065.0,92050.0,0.0108638]
[1765295213479,0.002,92036.0,92035.0,0.0108656]
[1765295213681,0.05816745,92072.0,92069.0,0.0108616]
[1765295213888,0.05816745,92072.0,92050.0,0.0108638]
[1765295213889,0.05816745,92079.0,92039.0,0.0543256]
[1765295214094,0.05833041,92080.0,92075.0,0.0108608]
[1765295214277,0.00016296,92080.0,92075.0,0.0108608]
[1765295214886,0.05816745,92091.0,92088.0,0.0108593]
[1765295215087,0.07786155,92096.0,92069.0,0.0108615]
[1765295215288,0.07786155,92097.0,92089.0,0.0108592]
[1765295215482,0.07786155,92097.0,92093.0,0.0108587]
[1765295215684,0.07786155,92097.0,92070.0,0.0108614]
[1765295215685,0.07786155,92099.0,92070.0,0.30952141]
[1765295215993,0.07786155,92106.0,92103.0,0.0108576]
[1765295216188,0.07786155,92105.0,92103.0,0.0108576]
[1765295216693,0.00016286,92114.0,92108.0,0.010857]
[1765295216880,0.00016286,92114.0,92095.0,0.00016286]
[1765295217080,0.05831072,92098.0,92095.0,0.00016286]
[1765295217286,0.05831072,92098.0,92096.0,0.0108584]
[1765295217592,0.05831072,92098.0,92097.0,0.7216]
[1765295218293,0.05831072,92100.0,92098.0,0.0108582]
[1765295218697,0.05831072,92101.0,92098.0,0.0108582]
[1765295218880,0.05825135,92103.0,92098.0,0.0108582]
[1765295219079,0.05825135,92100.0,92098.0,0.0108582]
[1765295219387,0.05825135,92104.0,92103.0,0.0108576]
[1765295219694,0.07774763,92111.0,92103.0,0.0108576]
[1765295219894,0.07774763,92111.0,92097.0,0.3608]
[1765295220191,0.004,92098.0,92097.0,0.3608]
[1765295220580,0.004,92098.0,92095.0,0.00016286]
[1765295220782,0.07774763,92101.0,92095.0,0.00016286]
[1765295220988,0.07774763,92098.0,92057.0,0.00010345]
[1765295221290,0.05823078,92087.0,92058.0,0.0108629]
[1765295221490,0.07774763,92096.0,92057.0,0.00010345]
[1765295221491,0.05823078,92086.0,92057.0,0.00010345]
[1765295221698,0.05823078,92085.0,92057.0,0.00010345]
[1765295221885,0.004,92098.0,92069.0,0.0108615]
[1765295221886,0.00016286,92080.0,92069.0,0.0108615]
[1765295222087,0.05839364,92080.0,92067.0,0.3608]
[1765295222283,0.3608,92077.0,92062.0,0.00016286]
[1765295222487,0.3608,92069.0,92062.0,0.00016286]
[1765295222900,0.3608,92066.0,92062.0,0.00016286]
[1765295223204,0.14423213,92080.0,92064.0,0.3608]
[1765295223492,0.3608,92065.0,92062.0,0.00016286]
[1765295223688,0.05823078,92072.0,92062.0,0.00016286]
[1765295223885,0.3608,92073.0,92069.0,0.0108616]
[1765295224086,0.00016286,92080.0,92071.0,0.3608]
[1765295224293,0.05823078,92076.0,92066.0,0.3608]
[1765295224486,0.05823078,92072.0,92062.0,0.00116286]
[1765295224689,0.3608,92067.0,92062.0,0.00116286]
[1765295225193,0.3608,92063.0,92057.0,0.00010345]
[1765295225396,0.002,92072.0,92059.0,0.0108628]
[1765295225700,0.002,92072.0,92068.0,0.0108616]
[1765295225891,0.004,92067.0,92057.0,0.00010345]
[1765295226095,0.004,92067.0,92065.0,0.0108619]
[1765295226392,0.007,92067.0,92065.0,0.0108619]
[1765295227090,0.00016286,92080.0,92065.0,0.0108619]
[1765295227292,0.00016286,92080.0,92079.0,0.3716604]
[1765295228284,0.00216286,92080.0,92079.0,0.3716604]
[1765295228498,0.3608,92110.0,92079.0,0.3716604]
[1765295228499,0.3608,92110.0,92080.0,0.0108603]
[1765295228800,0.006,92080.0,92070.0,0.3608]
[1765295229000,0.006,92080.0,92079.0,0.3716604]
[1765295229495,0.009,92080.0,92079.0,0.3608]
[1765295230200,0.009,92080.0,92070.0,0.00016286]
[1765295230394,0.3608,92074.0,92070.0,0.00016286]
[1765295230895,0.005,92080.0,92079.0,0.0108604]
[1765295231288,0.00016286,92089.0,92088.0,0.0108593]
[1765295232486,0.00616286,92089.0,92088.0,0.0108593]
[1765295233390,0.00916286,92089.0,92074.0,0.3608]
[1765295233590,0.00916286,92089.0,92085.0,0.0108596]
[1765295233991,0.00916286,92089.0,92080.0,0.0108602]
[1765295233992,0.36996286,92089.0,92080.0,0.0108602]
[1765295234191,0.3608,92088.0,92075.0,0.0108609]
[1765295234388,0.3608,92079.0,92071.0,0.0108613]
[1765295234591,0.3608,92088.0,92071.0,0.0108613]
[1765295234996,0.3608,92088.0,92070.0,0.00016286]
[1765295235197,0.3608,92088.0,92074.0,0.010861]
[1765295235394,0.3608,92088.0,92070.0,0.00016286]
[1765295235596,0.3608,92088.0,92073.0,0.0108611]
[1765295235796,0.3618,92088.0,92071.0,0.0108613]
[1765295236199,0.3638,92088.0,92078.0,0.3608]
[1765295236401,0.3638,92088.0,92070.0,0.00016286]
[1765295236610,0.3638,92088.0,92079.0,0.3716604]
[1765295236798,0.3638,92088.0,92079.0,0.0108604]
[1765295237098,0.3638,92088.0,92070.0,0.00016286]
[1765295237099,0.3628,92088.0,92075.0,0.0108608]
[1765295237294,0.3638,92088.0,92070.0,0.00016286]
[1765295237802,0.3638,92088.0,92070.0,0.0108614]
[1765295237999,0.3638,92088.0,92069.0,0.35982376]
[1765295238299,0.3638,92088.0,92065.0,0.0010862]
[1765295238300,0.3608,92079.0,92065.0,0.0010862]
[1765295238497,0.3608,92071.0,92065.0,0.0010862]
[1765295238896,0.002,92088.0,92065.0,0.0010862]
[1765295238897,0.002,92088.0,92073.0,0.010861]
[1765295239092,0.3608,92081.0,92065.0,0.0010862]
[1765295239295,0.3608,92068.0,92065.0,0.0010862]
[1765295239906,0.41903078,92086.0,92069.0,0.0108616]
[1765295240100,0.41903078,92086.0,92065.0,0.0010862]
[1765295240298,0.3608,92086.0,92068.0,0.3608]
[1765295240606,0.3608,92073.0,92065.0,0.0010862]
[1765295240899,0.3608,92084.0,92065.0,0.0010862]
[1765295240900,0.3608,92084.0,92075.0,0.0108608]
[1765295241103,0.3608,92084.0,92078.0,0.0108604]
[1765295241300,0.3608,92084.0,92069.0,0.0108616]
[1765295241502,0.3608,92084.0,92072.0,0.0108611]
[1765295241701,0.3608,92084.0,92066.0,0.3608]
[1765295242000,0.003,92068.0,92067.0,0.0108618]
[1765295242602,0.3608,92074.0,92067.0,0.0108618]